[Event "Betsys MČR v online bleskovém šachu 2021"]
[Site "Chess.com"]
[Date "2021.04.17"]
[Round "11"]
[White "Newyork6"]
[Black "keram91"]
[Result "0-1"]
[WhiteElo "328"]
[BlackElo "757"]
[TimeControl "180+1"]
[EndTime "10:49:53 PDT"]
[Termination "Uživatel keram91 zvítězil na čas"]

1. Nf3 {[%clk 0:02:56.8]} 1... d5 {[%clk 0:02:58.3]} 2. g3 {[%clk 0:02:55.2]}
2... e6 {[%clk 0:02:56.5]} 3. Bg2 {[%clk 0:02:56.1]} 3... f5 {[%clk 0:02:55.3]}
4. e3 {[%clk 0:02:55.4]} 4... Bc5 {[%clk 0:02:52.4]} 5. Ke2 {[%clk 0:02:54.2]}
5... Nc6 {[%clk 0:02:51.5]} 6. Ke1 {[%clk 0:02:51.1]} 6... Nf6 {[%clk
0:02:49.3]} 7. Kf1 {[%clk 0:02:46.6]} 7... b6 {[%clk 0:02:46.8]} 8. h3 {[%clk
0:02:43.4]} 8... Ba6+ {[%clk 0:02:46.2]} 9. Ke1 {[%clk 0:02:39.9]} 9... f4
{[%clk 0:02:44.4]} 10. c3 {[%clk 0:02:37.2]} 10... fxg3 {[%clk 0:02:42.8]} 11.
fxg3 {[%clk 0:02:36.2]} 11... Qd6 {[%clk 0:02:38.8]} 12. d3 {[%clk 0:02:33.2]}
12... Qxg3+ {[%clk 0:02:36.7]} 13. Ke2 {[%clk 0:02:28.4]} 13... Qxg2+ {[%clk
0:02:36.3]} 14. Ke1 {[%clk 0:02:18.1]} 14... Qxh1+ {[%clk 0:02:34.9]} 15. Ke2
{[%clk 0:02:16.5]} 15... Qg2+ {[%clk 0:02:31]} 16. Ke1 {[%clk 0:02:14.7]} 16...
Qg3+ {[%clk 0:02:28.7]} 17. Ke2 {[%clk 0:02:12.7]} 17... Bxe3 {[%clk 0:02:25.6]}
18. Kxe3 {[%clk 0:02:10.4]} 18... d4+ {[%clk 0:02:24.7]} 19. Kd2 {[%clk
0:02:02.2]} 19... Qf4+ {[%clk 0:02:19.1]} 20. Kc2 {[%clk 0:01:59.2]} 20... Qh2+
{[%clk 0:02:17]} 21. Kb3 {[%clk 0:01:55.3]} 21... Qd6 {[%clk 0:02:14.7]} 22. Kc2
{[%clk 0:01:51.3]} 22... Na5 {[%clk 0:02:12]} 23. b3 {[%clk 0:01:48]} 23... Rb8
{[%clk 0:02:04.1]} 24. Bb2 {[%clk 0:01:44.8]} 24... dxc3 {[%clk 0:02:03.2]} 25.
Bxc3 {[%clk 0:01:43]} 25... Ne4 {[%clk 0:01:57.8]} 26. Bxg7 {[%clk 0:01:40.1]}
26... Qc5+ {[%clk 0:01:53]} 27. Kb2 {[%clk 0:01:35.7]} 27... Rg8 {[%clk
0:01:41.6]} 28. Bc3 {[%clk 0:01:33.5]} 28... Rg2+ {[%clk 0:01:34.8]} 29. Kc1
{[%clk 0:01:13.9]} 29... Qe3+ {[%clk 0:01:31.8]} 30. Qd2 {[%clk 0:01:09.1]}
30... Rxd2 {[%clk 0:01:30.3]} 31. Bxd2 {[%clk 0:00:58.5]} 31... Qc5+ {[%clk
0:01:26.4]} 32. Kd1 {[%clk 0:00:48]} 32... Nf2+ {[%clk 0:01:23.9]} 33. Ke2
{[%clk 0:00:43]} 33... Rd8 {[%clk 0:01:19.2]} 34. Bxa5 {[%clk 0:00:38.1]} 34...
Qc2+ {[%clk 0:01:11.3]} 35. Ke1 {[%clk 0:00:34.5]} 35... Nxd3+ {[%clk
0:00:59.8]} 36. Kf1 {[%clk 0:00:32]} 36... Nf2+ {[%clk 0:00:54.2]} 37. Kg1
{[%clk 0:00:20.5]} 37... Rd1+ {[%clk 0:00:53.4]} 38. Kg2 {[%clk 0:00:17.9]}
38... Qg6+ {[%clk 0:00:49.5]} 39. Kh2 {[%clk 0:00:15]} 39... Qg1+ {[%clk
0:00:46.7]} 40. Nxg1 {[%clk 0:00:10.4]} 40... Ne4 {[%clk 0:00:41.8]} 41. Bxb6
{[%clk 0:00:06.2]} 41... Rd3 {[%clk 0:00:36.5]} 0-1

[Event "Betsys MČR v online bleskovém šachu 2021"]
[Site "Chess.com"]
[Date "2021.04.17"]
[Round "11"]
[White "JIDEMONI"]
[Black "TarantAnk"]
[Result "0-1"]
[WhiteElo "1877"]
[BlackElo "1736"]
[TimeControl "180+1"]
[EndTime "10:49:54 PDT"]
[Termination "Uživatel TarantAnk zvítězil po vzdání soupeře"]

1. d4 {[%clk 0:03:00.9]} 1... Nf6 {[%clk 0:02:59.7]} 2. Nf3 {[%clk 0:03:00.8]}
2... g6 {[%clk 0:03:00.3]} 3. Nc3 {[%clk 0:02:59.9]} 3... Bg7 {[%clk 0:03:00.8]}
4. e4 {[%clk 0:02:59.9]} 4... d6 {[%clk 0:03:00.6]} 5. Be2 {[%clk 0:03:00]} 5...
O-O {[%clk 0:03:01.1]} 6. O-O {[%clk 0:02:59.6]} 6... c5 {[%clk 0:03:01.6]} 7.
Be3 {[%clk 0:02:55.8]} 7... Ng4 {[%clk 0:03:00.4]} 8. h3 {[%clk 0:02:46.9]} 8...
Nxe3 {[%clk 0:02:59.9]} 9. fxe3 {[%clk 0:02:47.2]} 9... Nc6 {[%clk 0:02:59.7]}
10. Qd2 {[%clk 0:02:38.3]} 10... e6 {[%clk 0:02:58.5]} 11. Rad1 {[%clk
0:02:36.4]} 11... Qc7 {[%clk 0:02:57.6]} 12. d5 {[%clk 0:02:32.1]} 12... exd5
{[%clk 0:02:49.3]} 13. exd5 {[%clk 0:02:21.1]} 13... Ne5 {[%clk 0:02:45.6]} 14.
Nxe5 {[%clk 0:02:14.7]} 14... Bxe5 {[%clk 0:02:44.4]} 15. Nb5 {[%clk 0:02:10.2]}
15... Qe7 {[%clk 0:02:43.2]} 16. c4 {[%clk 0:02:04.2]} 16... Bxb2 {[%clk
0:02:35.8]} 17. Qxb2 {[%clk 0:01:57.5]} 17... Qxe3+ {[%clk 0:02:29.9]} 18. Kh1
{[%clk 0:01:57.2]} 18... Bxh3 {[%clk 0:02:04.8]} 19. Rf3 {[%clk 0:01:54.8]}
19... Bxg2+ {[%clk 0:01:58.2]} 20. Kxg2 {[%clk 0:01:53.5]} 20... Qg5+ {[%clk
0:01:58.2]} 21. Rg3 {[%clk 0:01:47.7]} 21... Qf4 {[%clk 0:01:56.8]} 22. Rf1
{[%clk 0:01:41.9]} 22... Qe4+ {[%clk 0:01:55.5]} 23. Kg1 {[%clk 0:01:18.6]}
23... Rae8 {[%clk 0:01:48.6]} 24. Rg2 {[%clk 0:01:15.5]} 24... Qe7 {[%clk
0:01:34.8]} 25. Qf6 {[%clk 0:01:08.1]} 25... Qe3+ {[%clk 0:01:29.8]} 26. Qf2
{[%clk 0:01:04.1]} 26... Qe5 {[%clk 0:01:19.4]} 27. Bd3 {[%clk 0:00:52.3]} 27...
a6 {[%clk 0:01:17.7]} 28. Na3 {[%clk 0:00:48.7]} 28... Qc3 {[%clk 0:01:12.2]}
29. Bb1 {[%clk 0:00:26.1]} 29... Qxa3 {[%clk 0:01:11]} 30. Rg3 {[%clk 0:00:25]}
30... Qa5 {[%clk 0:00:56.8]} 31. Rf3 {[%clk 0:00:24.4]} 31... Qc7 {[%clk
0:00:56.4]} 32. Kg2 {[%clk 0:00:24.6]} 32... Kg7 {[%clk 0:00:54.8]} 33. Qb2+
{[%clk 0:00:23]} 33... Kg8 {[%clk 0:00:54.1]} 34. Qf6 {[%clk 0:00:22.8]} 34...
Qe7 {[%clk 0:00:53.3]} 35. Qxe7 {[%clk 0:00:21.9]} 35... Rxe7 {[%clk 0:00:53.5]}
36. Rf6 {[%clk 0:00:21.1]} 36... Rd8 {[%clk 0:00:52.8]} 37. R1f2 {[%clk
0:00:20.4]} 37... b5 {[%clk 0:00:52.1]} 38. cxb5 {[%clk 0:00:19.6]} 38... axb5
{[%clk 0:00:52.1]} 39. Bc2 {[%clk 0:00:19.1]} 39... b4 {[%clk 0:00:52]} 40. Bb3
{[%clk 0:00:18.9]} 40... Kg7 {[%clk 0:00:48.8]} 41. R6f3 {[%clk 0:00:17.8]}
41... f5 {[%clk 0:00:45]} 42. Kf1 {[%clk 0:00:14.3]} 42... Rde8 {[%clk
0:00:42.1]} 43. Bc4 {[%clk 0:00:12.8]} 43... Re3 {[%clk 0:00:38.9]} 44. Rxe3
{[%clk 0:00:12.4]} 44... Rxe3 {[%clk 0:00:37.7]} 45. Re2 {[%clk 0:00:12.9]}
45... Rxe2 {[%clk 0:00:35.1]} 46. Kxe2 {[%clk 0:00:13.8]} 46... Kf6 {[%clk
0:00:35.5]} 47. Kf3 {[%clk 0:00:14.1]} 47... g5 {[%clk 0:00:33.4]} 0-1

[Event "Betsys MČR v online bleskovém šachu 2021"]
[Site "Chess.com"]
[Date "2021.04.17"]
[Round "11"]
[White "Cimrman"]
[Black "Soural_J"]
[Result "1-0"]
[WhiteElo "2332"]
[BlackElo "2192"]
[TimeControl "180+1"]
[EndTime "10:49:57 PDT"]
[Termination "Uživatel Cimrman zvítězil matem"]

1. d4 {[%clk 0:03:00.9]} 1... Nf6 {[%clk 0:02:59.4]} 2. Nf3 {[%clk 0:02:59.4]}
2... g6 {[%clk 0:02:59.4]} 3. c4 {[%clk 0:02:59]} 3... Bg7 {[%clk 0:02:59.5]} 4.
Nc3 {[%clk 0:02:58.9]} 4... O-O {[%clk 0:02:57.1]} 5. e4 {[%clk 0:02:59]} 5...
d6 {[%clk 0:02:57.3]} 6. Be2 {[%clk 0:02:59.3]} 6... c5 {[%clk 0:02:57.9]} 7.
O-O {[%clk 0:02:54.4]} 7... Nc6 {[%clk 0:02:55.5]} 8. d5 {[%clk 0:02:44.2]} 8...
Na5 {[%clk 0:02:54.8]} 9. Qc2 {[%clk 0:02:44.6]} 9... e5 {[%clk 0:02:48.9]} 10.
Bd2 {[%clk 0:02:35]} 10... b6 {[%clk 0:02:48.3]} 11. b3 {[%clk 0:02:31.1]} 11...
Nh5 {[%clk 0:02:44.6]} 12. Rfe1 {[%clk 0:02:29.5]} 12... Nf4 {[%clk 0:02:35.7]}
13. Bf1 {[%clk 0:02:27.4]} 13... f5 {[%clk 0:02:23.8]} 14. Bxf4 {[%clk
0:02:23.7]} 14... exf4 {[%clk 0:02:22.3]} 15. e5 {[%clk 0:02:24.1]} 15... dxe5
{[%clk 0:02:13.3]} 16. Nxe5 {[%clk 0:02:25]} 16... Qf6 {[%clk 0:01:45.4]} 17.
Nb5 {[%clk 0:02:09.2]} 17... Bb7 {[%clk 0:01:26.2]} 18. Nc7 {[%clk 0:02:04.3]}
18... Qd6 {[%clk 0:01:17]} 19. Nb5 {[%clk 0:01:39.2]} 19... Qb8 {[%clk
0:01:16.7]} 20. Nd7 {[%clk 0:01:38]} 20... Qc8 {[%clk 0:01:14.3]} 21. Nxf8
{[%clk 0:01:35]} 21... Bxa1 {[%clk 0:01:12.6]} 22. Ne6 {[%clk 0:01:32.1]} 22...
Bf6 {[%clk 0:01:05.8]} 23. Nxf4 {[%clk 0:01:30.3]} 23... Qd7 {[%clk 0:01:00.2]}
24. g3 {[%clk 0:01:27.5]} 24... a6 {[%clk 0:00:56.2]} 25. Nc3 {[%clk 0:01:23.6]}
25... Re8 {[%clk 0:00:55.8]} 26. Rxe8+ {[%clk 0:01:18.9]} 26... Qxe8 {[%clk
0:00:55.5]} 27. Ne6 {[%clk 0:01:15.2]} 27... Bc8 {[%clk 0:00:51.5]} 28. Bg2
{[%clk 0:01:08.6]} 28... Nb7 {[%clk 0:00:45.3]} 29. Ne2 {[%clk 0:01:04.1]} 29...
Nd6 {[%clk 0:00:41.2]} 30. N2f4 {[%clk 0:01:00.8]} 30... Qe7 {[%clk 0:00:31.7]}
31. h4 {[%clk 0:00:59.6]} 31... Kf7 {[%clk 0:00:26.3]} 32. Bf3 {[%clk
0:00:59.5]} 32... Kg8 {[%clk 0:00:23]} 33. Kg2 {[%clk 0:00:59.6]} 33... Nf7
{[%clk 0:00:22.9]} 34. Qe2 {[%clk 0:00:51]} 34... Ne5 {[%clk 0:00:22]} 35. Qe3
{[%clk 0:00:48.6]} 35... Nxf3 {[%clk 0:00:21.1]} 36. Qxf3 {[%clk 0:00:47.4]}
36... Be5 {[%clk 0:00:19]} 37. Qe3 {[%clk 0:00:45]} 37... Bxf4 {[%clk
0:00:18.4]} 38. gxf4 {[%clk 0:00:42]} 38... Bxe6 {[%clk 0:00:17.4]} 39. dxe6
{[%clk 0:00:37.5]} 39... Kf8 {[%clk 0:00:16.8]} 40. Qe5 {[%clk 0:00:35.2]} 40...
Qb7+ {[%clk 0:00:14.1]} 41. Kg3 {[%clk 0:00:33]} 41... Qh1 {[%clk 0:00:09.9]}
42. Qf6+ {[%clk 0:00:32]} 42... Ke8 {[%clk 0:00:08.5]} 43. Qf7+ {[%clk
0:00:32.3]} 43... Kd8 {[%clk 0:00:08.8]} 44. Qd7# {[%clk 0:00:33.2]} 1-0

[Event "Betsys MČR v online bleskovém šachu 2021"]
[Site "Chess.com"]
[Date "2021.04.17"]
[Round "11"]
[White "Filipdol"]
[Black "Devasales"]
[Result "1/2-1/2"]
[WhiteElo "1896"]
[BlackElo "1765"]
[TimeControl "180+1"]
[EndTime "10:49:57 PDT"]
[Termination "Remíza opakováním pozice"]

1. e4 {[%clk 0:03:00.9]} 1... c5 {[%clk 0:02:59.1]} 2. Nc3 {[%clk 0:03:00.4]}
2... d6 {[%clk 0:02:56.4]} 3. f4 {[%clk 0:03:00]} 3... e6 {[%clk 0:02:52.9]} 4.
Nf3 {[%clk 0:02:59.6]} 4... Be7 {[%clk 0:02:52.1]} 5. Bc4 {[%clk 0:02:56.1]}
5... Nf6 {[%clk 0:02:49.8]} 6. d3 {[%clk 0:02:55.7]} 6... a6 {[%clk 0:02:44.3]}
7. a4 {[%clk 0:02:54.9]} 7... Nc6 {[%clk 0:02:42.3]} 8. O-O {[%clk 0:02:54.2]}
8... O-O {[%clk 0:02:39.9]} 9. Qe1 {[%clk 0:02:52]} 9... Nd4 {[%clk 0:02:10.2]}
10. Qd1 {[%clk 0:02:38.6]} 10... e5 {[%clk 0:02:08.4]} 11. fxe5 {[%clk
0:02:21.1]} 11... Nxf3+ {[%clk 0:02:05.7]} 12. Qxf3 {[%clk 0:02:19.9]} 12...
dxe5 {[%clk 0:02:05.4]} 13. Be3 {[%clk 0:02:17.9]} 13... Qc7 {[%clk 0:01:51.1]}
14. Nd5 {[%clk 0:02:15.9]} 14... Nxd5 {[%clk 0:01:46.1]} 15. Bxd5 {[%clk
0:02:16.8]} 15... Be6 {[%clk 0:01:36]} 16. Bxe6 {[%clk 0:02:13.8]} 16... fxe6
{[%clk 0:01:35.5]} 17. Qe2 {[%clk 0:02:07.6]} 17... b5 {[%clk 0:01:31.7]} 18.
axb5 {[%clk 0:02:00.6]} 18... axb5 {[%clk 0:01:25.7]} 19. Rxa8 {[%clk
0:01:43.4]} 19... Rxa8 {[%clk 0:01:24]} 20. Qg4 {[%clk 0:01:44]} 20... Qc6
{[%clk 0:01:08.4]} 21. Bh6 {[%clk 0:01:30.8]} 21... g6 {[%clk 0:01:07.2]} 22. h4
{[%clk 0:01:28.4]} 22... Bf8 {[%clk 0:01:05.8]} 23. Bg5 {[%clk 0:01:21.9]} 23...
Bg7 {[%clk 0:01:01.8]} 24. Bf6 {[%clk 0:01:15.8]} 24... Rf8 {[%clk 0:00:59.6]}
25. Qg5 {[%clk 0:00:48.3]} 25... Qc7 {[%clk 0:00:52.1]} 26. Bxg7 {[%clk
0:00:37.8]} 26... Rxf1+ {[%clk 0:00:49.2]} 27. Kxf1 {[%clk 0:00:36.7]} 27...
Qxg7 {[%clk 0:00:48.5]} 28. Qd8+ {[%clk 0:00:35.6]} 28... Qf8+ {[%clk
0:00:48.3]} 29. Qxf8+ {[%clk 0:00:30.2]} 29... Kxf8 {[%clk 0:00:47.8]} 30. Ke2
{[%clk 0:00:30.7]} 30... Ke7 {[%clk 0:00:47.4]} 31. Ke3 {[%clk 0:00:29.8]} 31...
Kd6 {[%clk 0:00:40.9]} 32. c3 {[%clk 0:00:28.1]} 32... h6 {[%clk 0:00:39.1]} 33.
g4 {[%clk 0:00:27]} 33... Kc6 {[%clk 0:00:37]} 34. d4 {[%clk 0:00:24.4]} 34...
exd4+ {[%clk 0:00:35.6]} 35. cxd4 {[%clk 0:00:24.5]} 35... c4 {[%clk 0:00:35.4]}
36. Kd2 {[%clk 0:00:21.2]} 36... b4 {[%clk 0:00:33]} 37. Kc2 {[%clk 0:00:21.2]}
37... Kd6 {[%clk 0:00:30.9]} 38. h5 {[%clk 0:00:19.6]} 38... g5 {[%clk
0:00:30.2]} 39. Kd2 {[%clk 0:00:19.6]} 39... Kc6 {[%clk 0:00:29.6]} 40. b3
{[%clk 0:00:14.9]} 40... c3+ {[%clk 0:00:28.6]} 41. Kd3 {[%clk 0:00:14.6]} 41...
Kd6 {[%clk 0:00:24.8]} 42. Kc2 {[%clk 0:00:14.5]} 42... Kc6 {[%clk 0:00:24.5]}
43. Kd3 {[%clk 0:00:14.6]} 43... Kd6 {[%clk 0:00:24.4]} 44. Kc2 {[%clk
0:00:14.7]} 44... Kc6 {[%clk 0:00:22.8]} 45. Kd3 {[%clk 0:00:14.6]} 1/2-1/2

[Event "Betsys MČR v online bleskovém šachu 2021"]
[Site "Chess.com"]
[Date "2021.04.17"]
[Round "11"]
[White "milanpetras"]
[Black "czechfant94"]
[Result "1-0"]
[WhiteElo "1847"]
[BlackElo "1603"]
[TimeControl "180+1"]
[EndTime "10:49:58 PDT"]
[Termination "Uživatel milanpetras zvítězil po vzdání soupeře"]

1. f4 {[%clk 0:03:00.9]} 1... d5 {[%clk 0:02:59.1]} 2. b3 {[%clk 0:02:58.4]}
2... e6 {[%clk 0:02:55.1]} 3. Bb2 {[%clk 0:02:58.1]} 3... Nf6 {[%clk 0:02:55.1]}
4. Nf3 {[%clk 0:02:56.7]} 4... Be7 {[%clk 0:02:55.4]} 5. e3 {[%clk 0:02:56.6]}
5... Nbd7 {[%clk 0:02:55.5]} 6. Ne5 {[%clk 0:02:46.8]} 6... Nxe5 {[%clk
0:02:46.8]} 7. Bxe5 {[%clk 0:02:47.7]} 7... b6 {[%clk 0:02:46.4]} 8. Bb5+ {[%clk
0:02:42.9]} 8... Bd7 {[%clk 0:02:45.2]} 9. Qe2 {[%clk 0:02:35.5]} 9... Bxb5
{[%clk 0:02:42.8]} 10. Qxb5+ {[%clk 0:02:34.2]} 10... Qd7 {[%clk 0:02:43]} 11.
Qxd7+ {[%clk 0:02:33.9]} 11... Kxd7 {[%clk 0:02:43.9]} 12. O-O {[%clk
0:02:28.8]} 12... Ng4 {[%clk 0:02:43.2]} 13. Bxg7 {[%clk 0:02:23.8]} 13... Rhg8
{[%clk 0:02:43]} 14. Bb2 {[%clk 0:02:23.3]} 14... h5 {[%clk 0:02:35.8]} 15. h3
{[%clk 0:02:15.5]} 15... Nh6 {[%clk 0:02:35.4]} 16. Nc3 {[%clk 0:02:08.8]} 16...
Nf5 {[%clk 0:02:35.4]} 17. Ne2 {[%clk 0:02:07.6]} 17... h4 {[%clk 0:02:33.6]}
18. Rae1 {[%clk 0:01:56.7]} 18... Rg6 {[%clk 0:02:32.9]} 19. Kh2 {[%clk
0:01:51.4]} 19... Rag8 {[%clk 0:02:29.9]} 20. Rg1 {[%clk 0:01:51.1]} 20... Bb4
{[%clk 0:02:12.9]} 21. Bc3 {[%clk 0:01:44.9]} 21... Bxc3 {[%clk 0:02:06.4]} 22.
Nxc3 {[%clk 0:01:44.1]} 22... c5 {[%clk 0:02:06.5]} 23. Ne2 {[%clk 0:01:43.1]}
23... Nd6 {[%clk 0:01:59.7]} 24. g4 {[%clk 0:01:36.4]} 24... Ne4 {[%clk
0:01:59.1]} 25. d3 {[%clk 0:01:33.4]} 25... Nd6 {[%clk 0:01:57.3]} 26. Nc1
{[%clk 0:01:31.2]} 26... Kc6 {[%clk 0:01:56.4]} 27. e4 {[%clk 0:01:28.4]} 27...
dxe4 {[%clk 0:01:54.9]} 28. dxe4 {[%clk 0:01:29]} 28... f5 {[%clk 0:01:52.3]}
29. gxf5 {[%clk 0:01:25.4]} 29... exf5 {[%clk 0:01:48.9]} 30. e5 {[%clk
0:01:19.1]} 30... Ne4 {[%clk 0:01:34.3]} 31. Rxg6+ {[%clk 0:01:16.6]} 31... Rxg6
{[%clk 0:01:33.6]} 32. Rg1 {[%clk 0:01:11]} 32... Rxg1 {[%clk 0:01:19.6]} 33.
Kxg1 {[%clk 0:01:10]} 33... Kd5 {[%clk 0:01:20.5]} 34. Kg2 {[%clk 0:01:06.3]}
34... Kd4 {[%clk 0:01:20.9]} 35. Ne2+ {[%clk 0:01:03.1]} 35... Ke3 {[%clk
0:01:20.4]} 36. Kf1 {[%clk 0:00:43]} 36... Nd2+ {[%clk 0:01:15.6]} 37. Ke1
{[%clk 0:00:42.6]} 37... Nf3+ {[%clk 0:01:15.3]} 38. Kd1 {[%clk 0:00:42.7]}
38... Kf2 {[%clk 0:00:11.4]} 39. e6 {[%clk 0:00:38.5]} 39... Kg2 {[%clk
0:00:11.4]} 40. e7 {[%clk 0:00:37.3]} 40... Kxh3 {[%clk 0:00:11.8]} 41. e8=Q
{[%clk 0:00:36.8]} 41... Kg2 {[%clk 0:00:12.1]} 42. Qg6+ {[%clk 0:00:34.2]}
42... Kf2 {[%clk 0:00:11.9]} 43. Qxf5 {[%clk 0:00:32.1]} 43... h3 {[%clk
0:00:12.2]} 44. Qxh3 {[%clk 0:00:30.2]} 44... Ke3 {[%clk 0:00:10.2]} 45. Qxf3+
{[%clk 0:00:29.1]} 45... Kxf3 {[%clk 0:00:10.5]} 46. f5 {[%clk 0:00:29.2]} 1-0

[Event "Betsys MČR v online bleskovém šachu 2021"]
[Site "Chess.com"]
[Date "2021.04.17"]
[Round "11"]
[White "polik1112"]
[Black "Hanicka1517"]
[Result "1-0"]
[WhiteElo "1376"]
[BlackElo "1598"]
[TimeControl "180+1"]
[EndTime "10:49:59 PDT"]
[Termination "Uživatel polik1112 zvítězil po vzdání soupeře"]

1. e4 {[%clk 0:03:00.9]} 1... e6 {[%clk 0:03:00.2]} 2. d4 {[%clk 0:03:00.3]}
2... d5 {[%clk 0:03:00.4]} 3. e5 {[%clk 0:03:00.5]} 3... c5 {[%clk 0:03:00.6]}
4. c3 {[%clk 0:02:59.8]} 4... Nc6 {[%clk 0:03:00.9]} 5. Nf3 {[%clk 0:02:59.3]}
5... Nge7 {[%clk 0:03:00]} 6. Bd3 {[%clk 0:02:57.4]} 6... Ng6 {[%clk 0:02:56.1]}
7. O-O {[%clk 0:02:56.2]} 7... Be7 {[%clk 0:02:55.7]} 8. Be3 {[%clk 0:02:35.1]}
8... cxd4 {[%clk 0:02:52.2]} 9. cxd4 {[%clk 0:02:33.9]} 9... O-O {[%clk
0:02:52.1]} 10. Nbd2 {[%clk 0:02:28]} 10... Nb4 {[%clk 0:02:47.9]} 11. Be2
{[%clk 0:02:26.7]} 11... Bd7 {[%clk 0:02:45.9]} 12. Nb3 {[%clk 0:02:25.1]} 12...
Rc8 {[%clk 0:02:45.5]} 13. Rc1 {[%clk 0:02:24.6]} 13... Nxa2 {[%clk 0:02:22.6]}
14. Ra1 {[%clk 0:02:08]} 14... Nb4 {[%clk 0:02:22.1]} 15. Rxa7 {[%clk 0:02:04]}
15... Qc7 {[%clk 0:02:20.1]} 16. Qc1 {[%clk 0:01:58.1]} 16... Qxc1 {[%clk
0:02:13.9]} 17. Rxc1 {[%clk 0:01:57.8]} 17... Rxc1+ {[%clk 0:02:13.8]} 18. Bxc1
{[%clk 0:01:50.3]} 18... Bc6 {[%clk 0:02:06.5]} 19. Na5 {[%clk 0:01:45.5]} 19...
Rc8 {[%clk 0:02:00.2]} 20. Nxc6 {[%clk 0:01:32.3]} 20... Rxc6 {[%clk 0:01:55.9]}
21. Bd2 {[%clk 0:01:26.8]} 21... Na6 {[%clk 0:01:31.6]} 22. Rxb7 {[%clk
0:01:19.5]} 22... h6 {[%clk 0:01:26.1]} 23. Bb5 {[%clk 0:01:01.5]} 23... Rc7
{[%clk 0:00:49]} 24. Bxa6 {[%clk 0:00:57.1]} 24... Rc2 {[%clk 0:00:47.7]} 25.
Bd3 {[%clk 0:00:43.8]} 25... Rc8 {[%clk 0:00:45.3]} 26. Bxg6 {[%clk 0:00:42.3]}
26... fxg6 {[%clk 0:00:44.1]} 27. Rxe7 {[%clk 0:00:41.6]} 27... Rb8 {[%clk
0:00:44.5]} 28. Rxe6 {[%clk 0:00:39.9]} 28... Rxb2 {[%clk 0:00:43.5]} 29. Rxg6
{[%clk 0:00:38.8]} 29... Rb1+ {[%clk 0:00:40.6]} 30. Be1 {[%clk 0:00:38.7]}
30... Kf7 {[%clk 0:00:36.8]} 31. Rd6 {[%clk 0:00:37.4]} 31... Rb5 {[%clk
0:00:36.4]} 32. Kf1 {[%clk 0:00:35.5]} 32... g5 {[%clk 0:00:34.7]} 33. Bd2
{[%clk 0:00:29.8]} 33... g4 {[%clk 0:00:32.9]} 34. Ne1 {[%clk 0:00:23.8]} 34...
h5 {[%clk 0:00:31.4]} 35. Rh6 {[%clk 0:00:21.6]} 35... Rb2 {[%clk 0:00:31.5]}
36. Ke2 {[%clk 0:00:21]} 36... Kg7 {[%clk 0:00:25.8]} 37. Rxh5 {[%clk
0:00:20.9]} 37... Kg6 {[%clk 0:00:26.3]} 38. Rh4 {[%clk 0:00:20.4]} 38... Kf5
{[%clk 0:00:25.8]} 39. f3 {[%clk 0:00:19.5]} 39... gxf3+ {[%clk 0:00:25.2]} 40.
Nxf3 {[%clk 0:00:20.4]} 40... Rb8 {[%clk 0:00:22.1]} 41. g4+ {[%clk 0:00:20.3]}
41... Kg6 {[%clk 0:00:20.3]} 42. Rh3 {[%clk 0:00:19]} 42... Rb4 {[%clk
0:00:15.6]} 43. Bxb4 {[%clk 0:00:18.3]} 1-0

[Event "Betsys MČR v online bleskovém šachu 2021"]
[Site "Chess.com"]
[Date "2021.04.17"]
[Round "11"]
[White "Mitram64"]
[Black "sodikus"]
[Result "0-1"]
[WhiteElo "2084"]
[BlackElo "2276"]
[TimeControl "180+1"]
[EndTime "10:50:01 PDT"]
[Termination "Uživatel sodikus zvítězil matem"]

1. d4 {[%clk 0:03:00.9]} 1... Nf6 {[%clk 0:02:58.4]} 2. Nf3 {[%clk 0:03:00]}
2... e6 {[%clk 0:02:58.7]} 3. Bf4 {[%clk 0:02:59.5]} 3... c5 {[%clk 0:02:56.2]}
4. e3 {[%clk 0:02:58.5]} 4... Qb6 {[%clk 0:02:51]} 5. Nc3 {[%clk 0:02:57.7]}
5... Nc6 {[%clk 0:02:46.9]} 6. dxc5 {[%clk 0:02:52.8]} 6... Bxc5 {[%clk
0:02:40.6]} 7. Na4 {[%clk 0:02:50.1]} 7... Qa5+ {[%clk 0:02:37]} 8. c3 {[%clk
0:02:50]} 8... Be7 {[%clk 0:02:37]} 9. b4 {[%clk 0:02:40.3]} 9... Nxb4 {[%clk
0:02:07.6]} 10. Be2 {[%clk 0:02:39.5]} 10... Nbd5 {[%clk 0:02:01.5]} 11. Be5
{[%clk 0:02:33.5]} 11... d6 {[%clk 0:01:46.1]} 12. Bd4 {[%clk 0:02:19.6]} 12...
e5 {[%clk 0:01:46.3]} 13. e4 {[%clk 0:01:56.2]} 13... Nf4 {[%clk 0:01:46.3]} 14.
Be3 {[%clk 0:01:48.8]} 14... Nxg2+ {[%clk 0:01:46.2]} 15. Kf1 {[%clk 0:01:48.4]}
15... Bh3 {[%clk 0:01:45.9]} 16. Kg1 {[%clk 0:01:45.5]} 16... Nxe3 {[%clk
0:01:32.7]} 17. fxe3 {[%clk 0:01:44.7]} 17... Ng4 {[%clk 0:01:31.5]} 18. Rb1
{[%clk 0:01:39.2]} 18... O-O {[%clk 0:01:17.5]} 19. Rb5 {[%clk 0:01:31]} 19...
Qc7 {[%clk 0:01:13.9]} 20. Qb1 {[%clk 0:01:23.8]} 20... b6 {[%clk 0:01:10.9]}
21. Qc1 {[%clk 0:01:04.9]} 21... f5 {[%clk 0:00:59.8]} 22. exf5 {[%clk
0:00:57.7]} 22... Rxf5 {[%clk 0:00:59.6]} 23. e4 {[%clk 0:00:56.7]} 23... Rf4
{[%clk 0:00:54.4]} 24. c4 {[%clk 0:00:47.6]} 24... Raf8 {[%clk 0:00:52.8]} 25.
Qc3 {[%clk 0:00:42.4]} 25... Qc8 {[%clk 0:00:35.5]} 26. Rd5 {[%clk 0:00:37.7]}
26... Qe6 {[%clk 0:00:34.8]} 27. Nd2 {[%clk 0:00:29.8]} 27... Qh6 {[%clk
0:00:23]} 28. Qg3 {[%clk 0:00:25.9]} 28... Rf2 {[%clk 0:00:14]} 29. Rd3 {[%clk
0:00:16.5]} 29... Rxe2 {[%clk 0:00:11.7]} 30. Rf3 {[%clk 0:00:15.1]} 30... Rxd2
{[%clk 0:00:09]} 31. Qxh3 {[%clk 0:00:12.4]} 31... Rd1+ {[%clk 0:00:06.7]} 32.
Kg2 {[%clk 0:00:12]} 32... Qxh3+ {[%clk 0:00:06.7]} 33. Rxh3 {[%clk 0:00:09.4]}
33... Rf2+ {[%clk 0:00:06.2]} 34. Kg3 {[%clk 0:00:08.9]} 34... Rxh1 {[%clk
0:00:06.2]} 35. Kxg4 {[%clk 0:00:09]} 35... Rf4+ {[%clk 0:00:06.4]} 36. Kg3
{[%clk 0:00:08.6]} 36... Rg1# {[%clk 0:00:06.4]} 0-1